[Event "EYCC 2017"]
[Site "Mamaia"]
[Date "2017.09.09"]
[Round "5"]
[White "Denic, Hana"]
[Black "Shubenkova, Veronika"]
[Result "0-1"]
[ECO "B00"]
[WhiteElo "1555"]
[BlackElo "1505"]
[Annotator "NA"]
[PlyCount "100"]
[EventDate "2017.??.??"]
[EventType "swiss"]
[EventCountry "ROU"]
[SourceTitle "playchess.com"]
[Source "ChessBase"]
[SourceQuality "1"]
[TimeControl "40/5400+30:1800+30"]

1. e4 {[%emt 0:00:00]} b6 {[%emt 0:00:49]} 2. d4 {[%emt 0:00:46]} Bb7 {[%emt 0:01:12]} 3. Bd3 {[%emt 0:01:08]} Nf6 {[%emt 0:01:53]} 4. Nc3 {[%emt 0:00:31]} e6 {[%emt 0:01:38]} 5. a3 {[%emt 0:00:21]} d5 {[%emt 0:05:35]} 6. Bg5 {[%emt 0:03:50]} Be7 {[%emt 0:01:25]} 7. Bxf6 {[%emt 0:00:19]} Bxf6 {[%emt 0:00:25]} 8. e5 {[%emt 0:00:53]} Be7 {[%emt 0:00:48]} 9. Nge2 {[%emt 0:00:54]} c5 {[%emt 0:02:38]} 10. Bb5+ {[%emt 0:02:34]} Bc6 {[%emt 0:01:31]} 11. O-O {[%emt 0:01:29]} a6 {[%emt 0:02:20]} 12. Bxc6+ {[%emt 0:01:02]} Nxc6 {[%emt 0:00:04]} 13. f4 {[%emt 0:01:53]} cxd4 {[%emt 0:00:27]} 14. Nb1 {[%emt 0:02:04]} O-O {[%emt 0:06:29]} 15. Kh1 {[%emt 0:00:22]} f6 {[%emt 0:04:19]} 16. Nxd4 {[%emt 0:00:50]} Nxd4 {[%emt 0:02:56]} 17. Qxd4 {[%emt 0:00:49]} Bc5 {[%emt 0:01:14]} 18. Qc3 {[%emt 0:01:18]} fxe5 {[%emt 0:01:04]} 19. Qxe5 {[%emt 0:01:30]} Qf6 {[%emt 0:03:35]} 20. Qxf6 {[%emt 0:05:00]} Rxf6 {[%emt 0:00:04]} 21. Rf3 {[%emt 0:01:54]} Raf8 {[%emt 0:00:52]} 22. b4 {[%emt 0:02:08]} Bd6 {[%emt 0:00:13]} 23. g3 {[%emt 0:01:19]} g5 {[%emt 0:00:56]} 24. Rc3 {[%emt 0:02:10]} gxf4 {[%emt 0:00:49]} 25. Rc6 {[%emt 0:04:19]} Be5 {[%emt 0:00:52]} 26. Nc3 {[%emt 0:00:31]} fxg3 {[%emt 0:00:29]} 27. hxg3 {[%emt 0:00:19]} Rf3 {[%emt 0:01:26]} 28. Rd1 {[%emt 0:08:09]} Bxc3 {[%emt 0:01:04]} 29. Rxe6 {[%emt 0:00:34]} Rf1+ {[%emt 0:03:00]} 30. Rxf1 {[%emt 0:01:57]} Rxf1+ {[%emt 0:00:04]} 31. Kg2 {[%emt 0:00:17]} Rf6 {[%emt 0:00:07]} 32. Re3 {[%emt 0:00:43]} Bb2 {[%emt 0:02:51]} 33. Rd3 {[%emt 0:00:42]} d4 {[%emt 0:00:51]} 34. Rb3 {[%emt 0:00:36]} Bc3 {[%emt 0:00:29]} 35. Rb1 {[%emt 0:00:33]} Kg7 {[%emt 0:00:31]} 36. Rh1 {[%emt 0:00:21]} Rh6 {[%emt 0:01:06]} 37. Rf1 {[%emt 0:00:18]} Rf6 {[%emt 0:00:04]} 38. Rh1 {[%emt 0:00:36]} b5 {[%emt 0:00:15]} 39. Rh5 {[%emt 0:00:14]} Bb2 {[%emt 0:04:35]} 40. Rd5 {[%emt 0:00:00]} Rc6 {[%emt 0:00:20]} 41. Rc5 {[%emt 0:01:32]} Rxc5 {[%emt 0:01:16]} 42. bxc5 {[%emt 0:00:12]} Bxa3 {[%emt 0:00:08]} 43. c6 {[%emt 0:00:08]} Bd6 {[%emt 0:00:03]} 44. Kf3 {[%emt 0:00:13]} Kf6 {[%emt 0:00:37]} 45. g4 {[%emt 0:00:12]} Ke5 {[%emt 0:01:17]} 46. g5 {[%emt 0:00:25]} a5 {[%emt 0:00:30]} 47. Kg4 {[%emt 0:00:09]} a4 {[%emt 0:00:36]} 48. Kh5 {[%emt 0:00:09]} a3 {[%emt 0:00:16]} 49. Kh6 {[%emt 0:00:06]} a2 {[%emt 0:00:08]} 50. Kxh7 {[%emt 0:00:09]} a1=Q 0-1

[Event "EYCC 2017"]
[Site "Mamaia"]
[Date "2017.09.09"]
[Round "5"]
[White "Markus, Molli Amina"]
[Black "Bousmaha, Leila"]
[Result "1-0"]
[ECO "D02"]
[WhiteElo "1520"]
[BlackElo "1364"]
[Annotator "NA"]
[PlyCount "101"]
[EventDate "2017.??.??"]
[EventType "swiss"]
[EventCountry "ROU"]
[SourceTitle "playchess.com"]
[Source "ChessBase"]
[SourceQuality "1"]
[TimeControl "40/5400+30:1800+30"]

1. d4 {[%emt 0:00:22]} d5 {[%emt 0:00:27]} 2. Nf3 {[%emt 0:01:39]} Bf5 {[%emt 0:00:59]} 3. g3 {[%emt 0:01:38]} e6 {[%emt 0:00:36]} 4. Bg2 {[%emt 0:03:16]} c5 {[%emt 0:00:47]} 5. c4 {[%emt 0:02:24]} dxc4 {[%emt 0:02:29]} 6. Qa4+ {[%emt 0:00:33]} Nd7 {[%emt 0:01:28]} 7. Qxc4 {[%emt 0:03:16]} Ngf6 {[%emt 0:00:21]} 8. O-O {[%emt 0:02:06]} Be7 {[%emt 0:00:35]} 9. Nc3 {[%emt 0:03:02]} O-O {[%emt 0:00:52]} 10. dxc5 {[%emt 0:03:00]} Nxc5 {[%emt 0:03:25]} 11. Rd1 {[%emt 0:03:03]} Ncd7 {[%emt 0:03:16]} 12. Qb3 {[%emt 0:05:03]} Rb8 {[%emt 0:01:58]} 13. Nh4 {[%emt 0:01:35]} Bg6 {[%emt 0:02:34]} 14. Nxg6 {[%emt 0:02:13]} hxg6 {[%emt 0:00:11]} 15. Bf4 {[%emt 0:00:33]} Rc8 {[%emt 0:03:32]} 16. Bxb7 {[%emt 0:01:07]} Rc5 {[%emt 0:01:07]} 17. Na4 {[%emt 0:01:44]} Rf5 {[%emt 0:01:24]} 18. Bf3 {[%emt 0:01:57]} g5 {[%emt 0:02:23]} 19. e4 {[%emt 0:01:20]} Ra5 {[%emt 0:02:53]} 20. Bd2 {[%emt 0:01:57]} Ra6 {[%emt 0:01:37]} 21. Qb5 {[%emt 0:04:09]} Rxa4 {[%emt 0:02:44]} 22. Qxa4 {[%emt 0:00:30]} g4 {[%emt 0:01:11]} 23. Bg2 {[%emt 0:01:41]} Qb6 {[%emt 0:00:33]} 24. Be3 {[%emt 0:03:44]} Bc5 {[%emt 0:00:27]} 25. Bxc5 {[%emt 0:01:03]} Nxc5 {[%emt 0:00:18]} 26. Qd4 {[%emt 0:01:01]} e5 {[%emt 0:01:24]} 27. Qe3 {[%emt 0:01:46]} Ncxe4 {[%emt 0:01:45]} 28. Qxb6 {[%emt 0:02:09]} axb6 {[%emt 0:00:08]} 29. Bxe4 {[%emt 0:01:05]} Nxe4 {[%emt 0:00:09]} 30. Re1 {[%emt 0:00:41]} Nd2 {[%emt 0:00:11]} 31. Kg2 {[%emt 0:01:20]} f6 {[%emt 0:00:17]} 32. Rac1 {[%emt 0:01:29]} Kf7 {[%emt 0:00:29]} 33. Rc7+ {[%emt 0:00:31]} Kg6 {[%emt 0:00:07]} 34. Rc6 {[%emt 0:01:49]} Nf3 {[%emt 0:00:13]} 35. Rec1 {[%emt 0:01:45]} Rh8 {[%emt 0:00:22]} 36. Rh1 {[%emt 0:00:28]} Rb8 {[%emt 0:00:13]} 37. h3 {[%emt 0:01:25]} Nd4 {[%emt 0:00:12]} 38. Rcc1 {[%emt 0:00:44]} gxh3+ {[%emt 0:00:13]} 39. Kxh3 {[%emt 0:00:00]} Ra8 {[%emt 0:00:00]} 40. a3 {[%emt 0:00:00]} f5 {[%emt 0:01:49]} 41. Kg2 {[%emt 0:03:30]} f4 {[%emt 0:00:38]} 42. gxf4 {[%emt 0:01:00]} Ne2 {[%emt 0:00:18]} 43. Rc6+ {[%emt 0:00:21]} Kf5 {[%emt 0:00:11]} 44. fxe5 {[%emt 0:01:10]} Nf4+ {[%emt 0:00:11]} 45. Kf3 {[%emt 0:00:59]} Rb8 {[%emt 0:00:17]} 46. Rc7 {[%emt 0:04:25]} g5 {[%emt 0:01:10]} 47. Rf7+ {[%emt 0:08:04]} Kg6 {[%emt 0:00:59]} 48. Rf6+ {[%emt 0:00:56]} Kg7 {[%emt 0:00:47]} 49. Rg1 {[%emt 0:00:58]} Nh3 {[%emt 0:00:53]} 50. Rg3 {[%emt 0:00:24]} Rh8 {[%emt 0:00:42]} 51. Kg2 {[%emt 0:01:28]} 1-0

[Event "EYCC 2017"]
[Site "Mamaia"]
[Date "2017.09.09"]
[Round "5"]
[White "Suleymanli, Ismayil"]
[Black "Hajdu, Marton Abris"]
[Result "0-1"]
[ECO "B24"]
[WhiteElo "1483"]
[BlackElo "1280"]
[Annotator "NA"]
[PlyCount "218"]
[EventDate "2017.??.??"]
[EventType "swiss"]
[EventCountry "ROU"]
[SourceTitle "playchess.com"]
[Source "ChessBase"]
[SourceQuality "1"]
[TimeControl "40/5400+30:1800+30"]

1. e4 {[%emt 0:00:00]} c5 {[%emt 0:00:05]} 2. Nc3 {[%emt 0:00:00]} Nc6 {[%emt 0:00:04]} 3. g3 {[%emt 0:00:07]} g6 {[%emt 0:00:07]} 4. Bg2 {[%emt 0:00:04]} Bg7 {[%emt 0:00:15]} 5. d3 {[%emt 0:00:22]} e6 {[%emt 0:00:19]} 6. f4 {[%emt 0:00:26]} Nge7 {[%emt 0:00:18]} 7. Nf3 {[%emt 0:00:09]} d6 {[%emt 0:00:14]} 8. O-O {[%emt 0:00:22]} O-O {[%emt 0:00:15]} 9. Be3 {[%emt 0:00:24]} Nd4 {[%emt 0:00:54]} 10. h3 {[%emt 0:01:44]} Rb8 {[%emt 0:00:43]} 11. Bxd4 {[%emt 0:00:39]} cxd4 {[%emt 0:02:28]} 12. Ne2 {[%emt 0:00:36]} Nc6 {[%emt 0:00:47]} 13. Qe1 {[%emt 0:06:52]} Qb6 {[%emt 0:02:32]} 14. Rb1 {[%emt 0:00:23]} Bd7 {[%emt 0:00:23]} 15. Qf2 {[%emt 0:06:12]} e5 {[%emt 0:02:58]} 16. Nd2 {[%emt 0:05:58]} Bh6 {[%emt 0:03:08]} 17. g4 {[%emt 0:06:12]} f6 {[%emt 0:01:57]} 18. Qg3 {[%emt 0:12:14]} Bg7 {[%emt 0:03:26]} 19. h4 {[%emt 0:07:56]} Qd8 {[%emt 0:07:22]} 20. Bf3 {[%emt 0:07:07]} b5 {[%emt 0:01:52]} 21. Kh1 {[%emt 0:00:30]} Nb4 {[%emt 0:00:24]} 22. c3 {[%emt 0:09:45]} dxc3 {[%emt 0:01:19]} 23. Nxc3 {[%emt 0:01:53]} Nxd3 {[%emt 0:00:27]} 24. f5 {[%emt 0:00:12]} Bh6 {[%emt 0:04:04]} 25. Qh2 {[%emt 0:03:51]} Bf4 {[%emt 0:00:27]} 26. Qe2 {[%emt 0:00:48]} Nc5 {[%emt 0:05:39]} 27. b4 {[%emt 0:03:13]} Na6 {[%emt 0:00:21]} 28. Nd5 {[%emt 0:02:54]} Bxd2 {[%emt 0:02:13]} 29. Qxd2 {[%emt 0:00:08]} Be8 {[%emt 0:04:38]} 30. Rbc1 {[%emt 0:05:59]} Rb7 {[%emt 0:05:22]} 31. Rfd1 {[%emt 0:02:31]} Rff7 {[%emt 0:02:51]} 32. Qf2 {[%emt 0:01:49]} Nc7 {[%emt 0:09:38]} 33. Ne3 {[%emt 0:00:03]} Rg7 {[%emt 0:01:55]} 34. Qd2 {[%emt 0:00:30]} Rb6 {[%emt 0:01:28]} 35. Rc3 {[%emt 0:00:01]} Rd7 {[%emt 0:01:23]} 36. Rdc1 {[%emt 0:00:14]} Bf7 {[%emt 0:02:37]} 37. Rd1 {[%emt 0:00:03]} Kg7 {[%emt 0:01:59]} 38. Qg2 {[%emt 0:01:07]} Ne8 {[%emt 0:04:15]} 39. Rdc1 {[%emt 0:00:15]} Rc7 {[%emt 0:01:40]} 40. Qc2 {[%emt 0:00:00]} Rxc3 {[%emt 0:00:22]} 41. Qxc3 {[%emt 0:00:38]} Rb7 {[%emt 0:01:19]} 42. Qb2 {[%emt 0:00:46]} Qb6 {[%emt 0:01:02]} 43. Ng2 {[%emt 0:00:52]} Rc7 {[%emt 0:01:11]} 44. a3 {[%emt 0:00:16]} Rxc1+ {[%emt 0:00:43]} 45. Qxc1 {[%emt 0:00:03]} Qf2 {[%emt 0:00:51]} 46. Qc3 {[%emt 0:00:25]} Bc4 {[%emt 0:01:48]} 47. Qe3 {[%emt 0:01:02]} Qxe3 {[%emt 0:01:51]} 48. Nxe3 {[%emt 0:00:15]} Bb3 {[%emt 0:01:17]} 49. Kg2 {[%emt 0:00:49]} Kf7 {[%emt 0:02:05]} 50. Kf2 {[%emt 0:00:13]} Nc7 {[%emt 0:02:36]} 51. Ke2 {[%emt 0:00:12]} a6 52. Kd3 {[%emt 0:00:16]} Ba2 {[%emt 0:03:21]} 53. Kc2 {[%emt 0:00:46]} Kg7 {[%emt 0:00:41]} 54. Kb2 {[%emt 0:00:48]} Bg8 {[%emt 0:00:14]} 55. Kc3 {[%emt 0:00:05]} Kh6 {[%emt 0:02:37]} 56. Kd3 {[%emt 0:00:12]} g5 {[%emt 0:00:28]} 57. h5 {[%emt 0:00:04]} Kg7 {[%emt 0:00:36]} 58. Bd1 {[%emt 0:04:20]} h6 {[%emt 0:00:56]} 59. Bf3 {[%emt 0:05:10]} Kf8 {[%emt 0:00:28]} 60. Nd5 {[%emt 0:01:12]} Bxd5 {[%emt 0:00:42]} 61. exd5 {[%emt 0:00:05]} Ke8 {[%emt 0:00:24]} 62. Kc3 {[%emt 0:00:26]} Kd8 {[%emt 0:00:50]} 63. Kb3 {[%emt 0:00:39]} Kc8 {[%emt 0:00:36]} 64. Kc3 {[%emt 0:00:20]} Kb8 {[%emt 0:00:22]} 65. Kb3 {[%emt 0:00:12]} Kb7 {[%emt 0:00:09]} 66. Kc3 {[%emt 0:00:05]} Kb6 {[%emt 0:00:16]} 67. Kb3 {[%emt 0:00:04]} Na8 {[%emt 0:02:14]} 68. Kc3 {[%emt 0:00:50]} Kc7 {[%emt 0:00:19]} 69. Be4 {[%emt 0:00:54]} Nb6 {[%emt 0:00:29]} 70. Bf3 {[%emt 0:00:37]} Nc4 {[%emt 0:00:16]} 71. Be4 {[%emt 0:00:33]} Nxa3 {[%emt 0:01:11]} 72. Bd3 {[%emt 0:00:04]} Nc4 {[%emt 0:00:23]} 73. Bxc4 {[%emt 0:00:40]} bxc4 {[%emt 0:00:57]} 74. Kxc4 {[%emt 0:00:05]} Kb6 {[%emt 0:00:06]} 75. Kb3 {[%emt 0:00:12]} Kb5 {[%emt 0:00:10]} 76. Kc3 {[%emt 0:00:09]} a5 {[%emt 0:00:17]} 77. bxa5 {[%emt 0:00:04]} Kxa5 {[%emt 0:00:09]} 78. Kc4 {[%emt 0:00:12]} Ka4 {[%emt 0:00:09]} 79. Kd3 {[%emt 0:00:08]} Kb4 {[%emt 0:00:07]} 80. Ke3 {[%emt 0:00:08]} Kc4 {[%emt 0:00:05]} 81. Ke4 {[%emt 0:00:07]} Kc5 {[%emt 0:00:13]} 82. Kd3 {[%emt 0:00:03]} Kxd5 {[%emt 0:00:08]} 83. Ke3 {[%emt 0:00:05]} e4 {[%emt 0:00:12]} 84. Ke2 {[%emt 0:00:04]} Kd4 {[%emt 0:00:16]} 85. Kd2 {[%emt 0:00:09]} d5 {[%emt 0:00:16]} 86. Ke2 {[%emt 0:00:05]} Kc3 {[%emt 0:00:09]} 87. Ke3 {[%emt 0:00:06]} Kc2 {[%emt 0:00:11]} 88. Kd4 {[%emt 0:00:03]} e3 {[%emt 0:00:45]} 89. Kxd5 {[%emt 0:00:05]} e2 {[%emt 0:00:11]} 90. Ke6 {[%emt 0:00:03]} e1=Q+ {[%emt 0:00:17]} 91. Kxf6 {[%emt 0:00:05]} Qh4 {[%emt 0:01:03]} 92. Kg6 {[%emt 0:00:06]} Qxg4 {[%emt 0:00:22]} 93. f6 {[%emt 0:00:13]} Qe6 {[%emt 0:00:17]} 94. Kg7 {[%emt 0:00:05]} g4 {[%emt 0:02:47]} 95. f7 {[%emt 0:00:06]} Qxf7+ {[%emt 0:00:31]} 96. Kxf7 {[%emt 0:00:07]} g3 {[%emt 0:00:05]} 97. Kg6 {[%emt 0:00:05]} g2 {[%emt 0:00:14]} 98. Kxh6 {[%emt 0:00:05]} g1=Q {[%emt 0:00:28]} 99. Kh7 {[%emt 0:00:05]} Qa7+ {[%emt 0:00:24]} 100. Kg6 {[%emt 0:00:28]} Qb8 {[%emt 0:00:40]} 101. Kg7 {[%emt 0:00:14]} Qc7+ {[%emt 0:00:09]} 102. Kg6 {[%emt 0:00:05]} Qd8 {[%emt 0:00:12]} 103. Kg7 {[%emt 0:00:04]} Qe7+ {[%emt 0:00:17]} 104. Kg6 {[%emt 0:00:04]} Qe8+ {[%emt 0:00:26]} 105. Kh6 {[%emt 0:00:06]} Qh8+ {[%emt 0:00:08]} 106. Kg6 {[%emt 0:00:04]} Kd3 {[%emt 0:00:11]} 107. h6 {[%emt 0:00:06]} Ke4 {[%emt 0:00:10]} 108. h7 {[%emt 0:00:04]} Ke5 {[%emt 0:00:17]} 109. Kh6 {[%emt 0:00:06]} Kf5 0-1

[Event "EYCC 2017"]
[Site "Mamaia"]
[Date "2017.09.09"]
[Round "5"]
[White "Svergina, Sofya"]
[Black "Abaszada, Suada"]
[Result "1-0"]
[ECO "B90"]
[WhiteElo "1472"]
[BlackElo "1295"]
[Annotator "NA"]
[PlyCount "37"]
[EventDate "2017.??.??"]
[EventType "swiss"]
[EventCountry "ROU"]
[SourceTitle "playchess.com"]
[Source "ChessBase"]
[SourceQuality "1"]
[TimeControl "40/5400+30:1800+30"]

1. e4 {[%emt 0:00:00]} c5 {[%emt 0:00:19]} 2. Nf3 {[%emt 0:00:00]} d6 {[%emt 0:00:20]} 3. d4 {[%emt 0:00:11]} cxd4 {[%emt 0:00:29]} 4. Nxd4 {[%emt 0:00:26]} Nf6 {[%emt 0:00:48]} 5. Nc3 {[%emt 0:00:24]} a6 {[%emt 0:01:02]} 6. Be3 {[%emt 0:00:46]} Nbd7 {[%emt 0:02:35]} 7. f3 {[%emt 0:01:02]} g6 {[%emt 0:01:03]} 8. Qd2 {[%emt 0:00:20]} Bg7 {[%emt 0:03:01]} 9. O-O-O {[%emt 0:00:36]} O-O {[%emt 0:00:54]} 10. g4 {[%emt 0:01:32]} b5 {[%emt 0:05:04]} 11. h4 {[%emt 0:03:07]} h5 {[%emt 0:17:09]} 12. Kb1 {[%emt 0:04:56]} Bb7 {[%emt 0:06:24]} 13. Bh6 {[%emt 0:15:15]} hxg4 {[%emt 0:11:58]} 14. h5 {[%emt 0:01:05]} Ne5 {[%emt 0:39:57]} 15. hxg6 {[%emt 0:03:50]} Nxg6 {[%emt 0:04:47]} 16. Bxg7 {[%emt 0:00:24]} Kxg7 {[%emt 0:00:01]} 17. Qh6+ {[%emt 0:00:13]} Kg8 {[%emt 0:00:24]} 18. Ne6 {[%emt 0:00:13]} fxe6 {[%emt 0:02:14]} 19. Qxg6# {[%emt 0:00:07]} 1-0

[Event "EYCC 2017"]
[Site "Mamaia"]
[Date "2017.09.09"]
[Round "5"]
[White "Zavivaeva, Evelina"]
[Black "Smietanska, Wiktoria"]
[Result "1-0"]
[ECO "D55"]
[WhiteElo "1406"]
[BlackElo "1446"]
[Annotator "NA"]
[PlyCount "77"]
[EventDate "2017.??.??"]
[EventType "swiss"]
[EventCountry "ROU"]
[SourceTitle "playchess.com"]
[Source "ChessBase"]
[SourceQuality "1"]
[TimeControl "40/5400+30:1800+30"]

1. d4 {[%emt 0:00:00]} d5 {[%emt 0:00:06]} 2. c4 {[%emt 0:00:26]} e6 {[%emt 0:00:13]} 3. Nc3 {[%emt 0:00:14]} Nf6 {[%emt 0:00:30]} 4. Nf3 {[%emt 0:00:37]} Be7 {[%emt 0:00:17]} 5. Bg5 {[%emt 0:00:34]} O-O {[%emt 0:00:31]} 6. e3 {[%emt 0:00:21]} h6 {[%emt 0:01:19]} 7. Bf4 {[%emt 0:00:19]} c5 {[%emt 0:12:01]} 8. Bd3 {[%emt 0:01:33]} a6 {[%emt 0:07:05]} 9. O-O {[%emt 0:01:20]} dxc4 {[%emt 0:04:36]} 10. Bxc4 {[%emt 0:00:30]} b5 {[%emt 0:01:22]} 11. Bd3 {[%emt 0:00:52]} Bb7 {[%emt 0:04:35]} 12. dxc5 {[%emt 0:02:19]} Bxc5 {[%emt 0:00:13]} 13. Nd4 {[%emt 0:02:03]} Bxd4 {[%emt 0:08:51]} 14. exd4 {[%emt 0:00:16]} Nc6 {[%emt 0:00:21]} 15. Be3 {[%emt 0:01:01]} b4 {[%emt 0:02:12]} 16. Ne2 {[%emt 0:00:20]} Nd5 {[%emt 0:01:56]} 17. Ng3 {[%emt 0:02:19]} Nf6 {[%emt 0:01:38]} 18. Rc1 {[%emt 0:01:00]} Rc8 {[%emt 0:05:03]} 19. Ne4 {[%emt 0:03:03]} Nd7 {[%emt 0:09:02]} 20. Nd6 {[%emt 0:01:07]} Qc7 {[%emt 0:03:02]} 21. Nxc8 {[%emt 0:01:42]} Rxc8 {[%emt 0:00:17]} 22. Qg4 {[%emt 0:01:00]} Nf6 {[%emt 0:01:18]} 23. Qe2 {[%emt 0:02:18]} Ra8 {[%emt 0:02:22]} 24. Rc2 {[%emt 0:01:18]} Qd7 {[%emt 0:02:42]} 25. Rd1 {[%emt 0:01:07]} Qd5 {[%emt 0:01:22]} 26. f3 {[%emt 0:02:37]} Qxa2 {[%emt 0:02:24]} 27. Rc5 {[%emt 0:03:18]} Nd7 {[%emt 0:04:06]} 28. Bc4 {[%emt 0:15:52]} b3 {[%emt 0:01:47]} 29. Rh5 {[%emt 0:01:20]} Nf6 {[%emt 0:00:44]} 30. Rh3 {[%emt 0:01:42]} Qa4 {[%emt 0:04:43]} 31. Rg3 {[%emt 0:02:28]} Kh8 {[%emt 0:01:27]} 32. Rc1 {[%emt 0:07:31]} Na5 {[%emt 0:01:59]} 33. Bd3 {[%emt 0:00:40]} Qd7 {[%emt 0:00:15]} 34. Qd2 {[%emt 0:00:51]} Nc6 {[%emt 0:00:24]} 35. Bxh6 {[%emt 0:01:02]} Ne8 {[%emt 0:01:55]} 36. Bxg7+ {[%emt 0:01:02]} Kg8 {[%emt 0:00:16]} 37. Bf6+ {[%emt 0:00:21]} Kf8 {[%emt 0:00:24]} 38. Qh6+ {[%emt 0:00:25]} Ng7 {[%emt 0:00:12]} 39. Qh8# {[%emt 0:00:00]} 1-0

[Event "EYCC 2017"]
[Site "Mamaia"]
[Date "2017.09.09"]
[Round "5"]
[White "Fileru, Maria"]
[Black "Gasimova, Samra"]
[Result "1/2-1/2"]
[ECO "E81"]
[WhiteElo "1371"]
[BlackElo "1578"]
[Annotator "NA"]
[PlyCount "63"]
[EventDate "2017.??.??"]
[EventType "swiss"]
[EventCountry "ROU"]
[SourceTitle "playchess.com"]
[Source "ChessBase"]
[SourceQuality "1"]
[TimeControl "40/5400+30:1800+30"]

1. d4 {[%emt 0:00:00]} Nf6 {[%emt 0:00:16]} 2. c4 {[%emt 0:00:00]} g6 {[%emt 0:00:04]} 3. Nc3 {[%emt 0:00:00]} Bg7 {[%emt 0:00:05]} 4. e4 {[%emt 0:00:10]} d6 {[%emt 0:00:04]} 5. f3 {[%emt 0:00:21]} O-O {[%emt 0:00:49]} 6. Bg5 {[%emt 0:00:21]} Nc6 {[%emt 0:00:50]} 7. Qd2 {[%emt 0:05:54]} e5 {[%emt 0:14:15]} 8. d5 {[%emt 0:06:30]} Nd4 {[%emt 0:01:26]} 9. Nge2 {[%emt 0:03:27]} c5 {[%emt 0:09:21]} 10. dxc6 {[%emt 0:01:46]} bxc6 {[%emt 0:08:22]} 11. Nxd4 {[%emt 0:09:19]} exd4 {[%emt 0:00:35]} 12. Qxd4 {[%emt 0:00:13]} Nxe4 {[%emt 0:03:50]} 13. Qxg7+ {[%emt 0:00:13]} Kxg7 {[%emt 0:00:06]} 14. Bxd8 {[%emt 0:00:06]} Nxc3 {[%emt 0:00:30]} 15. Bc7 {[%emt 0:01:02]} Re8+ {[%emt 0:01:59]} 16. Kf2 {[%emt 0:00:11]} Na4 {[%emt 0:00:18]} 17. b3 {[%emt 0:00:49]} Nc3 {[%emt 0:06:07]} 18. Bxd6 {[%emt 0:01:11]} a5 {[%emt 0:04:30]} 19. a3 {[%emt 0:00:52]} Bf5 {[%emt 0:02:59]} 20. Rc1 {[%emt 0:03:55]} Na2 {[%emt 0:00:53]} 21. Ra1 {[%emt 0:00:18]} Nc3 {[%emt 0:00:04]} 22. Rc1 {[%emt 0:27:11]} Na2 {[%emt 0:00:10]} 23. Ra1 {[%emt 0:00:06]} Nc3 24. c5 {[%emt 0:19:45]} Nd5 {[%emt 0:01:53]} 25. Bc4 {[%emt 0:00:23]} Ne3 {[%emt 0:01:12]} 26. Rac1 {[%emt 0:01:19]} Nxc4 {[%emt 0:02:45]} 27. Rxc4 {[%emt 0:00:06]} Be6 {[%emt 0:00:32]} 28. Rc3 {[%emt 0:00:51]} Ra7 {[%emt 0:00:40]} 29. Rb1 {[%emt 0:01:11]} Rb7 {[%emt 0:02:01]} 30. b4 {[%emt 0:00:49]} Rb5 {[%emt 0:03:47]} 31. Rb2 {[%emt 0:00:26]} Ra8 {[%emt 0:01:46]} 32. Rd3 {[%emt 0:01:11]} 1/2-1/2

[Event "EYCC 2017"]
[Site "Mamaia"]
[Date "2017.09.09"]
[Round "5"]
[White "Vingris, Mikelis"]
[Black "Giang, Tran Nam"]
[Result "0-1"]
[ECO "D23"]
[WhiteElo "1282"]
[BlackElo "1561"]
[Annotator "NA RC"]
[PlyCount "65"]
[EventDate "2017.??.??"]
[EventType "swiss"]
[EventCountry "ROU"]
[SourceTitle "playchess.com"]
[Source "ChessBase"]
[SourceQuality "1"]
[TimeControl "40/5400+30:1800+30"]

1. d4 d5 2. Nf3 Nf6 3. c4 dxc4 4. Bg5 a6 5. a4 Nc6 6. e3 Na5 7. Nbd2 Be6 8. Rc1 b5 9. Qc2 h6 10. Bh4 g6 11. Be2 Bg7 12. O-O O-O 13. Qc3 c6 14. e4 Rc8 15. Bxf6 Bxf6 16. e5 Bg7 17. Ra1 Ra8 18. Bd1 Qb6 19. Ne4 Nb7 20. a5 Qc7 21. Qb4 Bd5 22. Nfd2 Rfd8 23. Nc5 Nxc5 24. Qxc5 Qa7 25. Qxa7 Rxa7 26. Bf3 Rc7 27. Rad1 Rcd7 28. Bg4 Be6 29. Bxe6 fxe6 30. Nf3 c5 31. Rc1 cxd4 32. Rfe1 d3 33. Rcd1 0-1

[Event "EYCC 2017"]
[Site "Mamaia"]
[Date "2017.09.09"]
[Round "5"]
[White "Kusakina, Uliana"]
[Black "Zubkovskaya, Ekaterina"]
[Result "0-1"]
[ECO "C58"]
[WhiteElo "1157"]
[BlackElo "1399"]
[Annotator "NA"]
[PlyCount "76"]
[EventDate "2017.??.??"]
[EventType "swiss"]
[EventCountry "ROU"]
[SourceTitle "playchess.com"]
[Source "ChessBase"]
[SourceQuality "1"]
[TimeControl "40/5400+30:1800+30"]

1. e4 {[%emt 0:00:00]} e5 {[%emt 0:00:11]} 2. Nf3 {[%emt 0:00:00]} Nc6 {[%emt 0:00:11]} 3. Bc4 {[%emt 0:00:00]} Nf6 {[%emt 0:00:12]} 4. Ng5 {[%emt 0:00:11]} d5 {[%emt 0:00:07]} 5. exd5 {[%emt 0:00:33]} Na5 {[%emt 0:00:08]} 6. d3 {[%emt 0:00:20]} h6 {[%emt 0:00:07]} 7. Nf3 {[%emt 0:00:15]} e4 {[%emt 0:01:48]} 8. Qe2 {[%emt 0:00:18]} Nxc4 {[%emt 0:01:45]} 9. dxc4 {[%emt 0:00:10]} Bc5 {[%emt 0:03:01]} 10. Nfd2 {[%emt 0:00:25]} O-O {[%emt 0:01:35]} 11. Nb3 {[%emt 0:00:14]} Bd6 {[%emt 0:00:11]} 12. Be3 {[%emt 0:04:14]} Bg4 {[%emt 0:06:36]} 13. Qf1 {[%emt 0:00:42]} c6 {[%emt 0:05:16]} 14. h3 {[%emt 0:00:57]} Bd7 {[%emt 0:00:36]} 15. dxc6 {[%emt 0:02:51]} Bxc6 {[%emt 0:05:45]} 16. a3 {[%emt 0:04:23]} Be5 {[%emt 0:04:47]} 17. c3 {[%emt 0:07:05]} Qc7 {[%emt 0:06:34]} 18. N1d2 {[%emt 0:03:47]} a6 {[%emt 0:01:12]} 19. O-O-O {[%emt 0:01:49]} b5 {[%emt 0:00:34]} 20. cxb5 {[%emt 0:08:04]} Bxb5 {[%emt 0:00:15]} 21. Qe1 {[%emt 0:02:21]} Bd3 {[%emt 0:00:31]} 22. Nc5 {[%emt 0:06:45]} Bb5 23. Ndxe4 {[%emt 0:07:28]} Nxe4 {[%emt 0:01:34]} 24. Nxe4 {[%emt 0:01:07]} Rab8 {[%emt 0:00:42]} 25. Rd2 {[%emt 0:09:53]} Qc4 {[%emt 0:01:17]} 26. Nd6 {[%emt 0:10:59]} Bxd6 {[%emt 0:00:44]} 27. Rxd6 {[%emt 0:00:19]} Qa2 {[%emt 0:00:08]} 28. Rd4 {[%emt 0:10:28]} Bc4 {[%emt 0:00:34]} 29. b4 {[%emt 0:03:52]} Qxa3+ {[%emt 0:00:43]} 30. Kc2 {[%emt 0:00:33]} Qb3+ {[%emt 0:00:00]} 31. Kc1 {[%emt 0:02:27]} a5 {[%emt 0:00:10]} 32. Rxc4 {[%emt 0:03:17]} Qxc4 {[%emt 0:00:09]} 33. Bd4 {[%emt 0:03:17]} axb4 {[%emt 0:00:22]} 34. Qe5 {[%emt 0:00:48]} f6 {[%emt 0:00:16]} 35. Qc5 {[%emt 0:00:30]} Qa2 {[%emt 0:00:51]} 36. Rd1 {[%emt 0:02:03]} bxc3 {[%emt 0:00:32]} 37. Qd5+ {[%emt 0:01:51]} Qxd5 {[%emt 0:00:15]} 38. Bxc3 {[%emt 0:00:38]} Qa2 {[%emt 0:00:18]} 0-1